fUST/lending_fUST_20250312
["ID","MTS","AMOUNT","RATE_DAILY","PERIOD"]
[355960490,1741734697702,-500.0,0.00022856,2]
[355960491,1741734697711,-627.98,0.00022856,2]
[355960492,1741734697722,-500.0,0.0002286,2]
[355960493,1741734697732,-500.0,0.0002286,2]
[355960494,1741734697742,-500.0,0.0002286,2]
[355960495,1741734697754,-728.06,0.0002286,2]
[355960496,1741734697765,-958.86,0.0002286,2]
[355960497,1741734697775,-1101.24,0.0002286,2]
[355960498,1741734697785,-987.72,0.0002286,2]
[355960499,1741734697796,-1000.0,0.0002286,5]
[355960500,1741734697806,-500.0,0.00022861,2]
[355960501,1741734697816,-555.94170808,0.00022861,2]
[355960502,1741734697826,-1782.88,0.00022861,2]
[355960503,1741734697838,-559.98,0.00022861,2]
[355960504,1741734697849,-640.92,0.00022861,2]
[355960505,1741734697859,-578.46,0.00022861,2]
[355960506,1741734697869,-1913.04,0.00022861,2]
[355960507,1741734697879,-500.0,0.00022861,2]
[355960508,1741734697889,-888.29,0.00022861,2]
[355960509,1741734697899,-748.42,0.00022861,2]
[355960510,1741734697909,-1000.0,0.0002288,5]
[355960511,1741734697919,-9572.92440169,0.00022885,2]
[355960512,1741734697929,-1000.0,0.000229,5]
[355960513,1741734697939,-3000.0,0.00022914,2]
[355960514,1741734697949,-500.0,0.00022949,2]
[355960515,1741734697959,-1000.0,0.00023,23]
[355960516,1741734697969,-416.66666667,0.00023,3]
[355960517,1741734697979,-15572.92107546,0.00023,3]
[355960518,1741734697989,-2000.0,0.00023,4]
[355960519,1741734697999,-23179.53,0.00023013,2]
[355960520,1741734698009,-542.81,0.00023013,2]
[355960521,1741734698019,-500.0,0.00023013,2]
[355960522,1741734698030,-2091.01,0.00023013,2]
[355960523,1741734698040,-13103.95,0.00023013,2]
[355960524,1741734698050,-9736.43,0.00023013,2]
[355960525,1741734698060,-794.64,0.00023013,2]
[355960526,1741734698070,-705.67,0.00023013,2]
[355960527,1741734698080,-536.16,0.00023013,2]
[355960528,1741734698091,-500.0,0.00023013,2]
[355960529,1741734698102,-500.0,0.00023013,2]
[355960530,1741734698112,-500.0,0.00023013,2]
[355960531,1741734698121,-576.66,0.00023013,2]
[355960532,1741734698131,-500.0,0.00023013,2]
[355960533,1741734698142,-1473.83,0.00023013,2]
[355960534,1741734698152,-570.33,0.00023013,2]
[355960535,1741734698162,-500.0,0.00023013,2]
[355960536,1741734698171,-555.983111,0.00023013,2]
[355960537,1741734698181,-500.0,0.00023013,2]
[355960538,1741734698191,-505.73,0.00023013,2]
[355960539,1741734698201,-5474.57,0.00023013,2]
[355960540,1741734698211,-3769.43,0.00023013,2]
[355960541,1741734698220,-1250.48,0.00023013,2]
[355960542,1741734698230,-2486.99,0.00023013,2]
[355960543,1741734698239,-525.77,0.00023013,2]
[355960544,1741734698249,-500.0,0.00023013,2]
[355960545,1741734698258,-601.79,0.00023013,2]
[355960546,1741734698268,-723.39,0.00023013,2]
[355960547,1741734698278,-500.0,0.00023013,2]
[355960548,1741734698287,-500.0,0.00023013,2]
[355960549,1741734698298,-500.0,0.00023013,2]
[355960550,1741734698307,-659.44,0.00023013,2]
[355960551,1741734698318,-500.0,0.00023013,2]
[355960552,1741734698327,-500.0,0.00023013,2]
[355960553,1741734698337,-500.0,0.00023013,2]
[355960554,1741734698346,-1136.06,0.00023013,2]
[355960555,1741734698356,-711.23,0.00023013,2]
[355960556,1741734698366,-710.79,0.00023013,2]
[355960557,1741734698375,-500.0,0.00023013,2]
[355960558,1741734698385,-500.0,0.00023013,2]
[355960559,1741734698395,-1151.95,0.00023013,2]
[355960560,1741734698404,-513.3,0.00023013,2]
[355960561,1741734698413,-714.14,0.00023013,2]
[355960562,1741734698423,-500.0,0.00023013,2]
[355960563,1741734698432,-1290.07,0.00023013,2]
[355960564,1741734698442,-500.0,0.00023013,2]
[355960565,1741734698452,-4997.1,0.00023013,2]
[355960566,1741734698461,-500.0,0.00023013,2]
[355960567,1741734698471,-1292.35,0.00023013,2]
[355960568,1741734698481,-1188.37,0.00023013,2]
[355960569,1741734698491,-604.97,0.00023013,2]
[355960570,1741734698501,-630.73,0.00023013,2]
[355960571,1741734698512,-1994.33,0.00023013,2]
[355960572,1741734698521,-892.18,0.00023013,2]
[355960573,1741734698531,-755.13,0.00023013,2]
[355960574,1741734698541,-545.99,0.00023013,2]
[355960575,1741734698551,-1156.57,0.00023013,2]
[355960576,1741734698561,-520.62,0.00023013,2]
[355960577,1741734698571,-1451.2,0.00023013,2]
[355960578,1741734698580,-500.0,0.00023013,2]
[355960579,1741734698590,-621.0,0.00023013,2]
[355960580,1741734698600,-1784.22,0.00023013,2]
[355960581,1741734698610,-500.0,0.00023013,2]
[355960582,1741734698619,-500.0,0.00023013,2]
[355960583,1741734698629,-1214.06,0.00023013,2]
[355960584,1741734698639,-868.24,0.00023013,2]
[355960585,1741734698648,-500.0,0.00023013,2]
[355960586,1741734698657,-1227.37,0.00023013,2]
[355960587,1741734698667,-728.17,0.00023013,2]
[355960588,1741734698676,-1170.42,0.00023013,2]
[355960589,1741734698686,-5008.44,0.00023013,2]
[355960590,1741734698696,-500.0,0.00023013,2]
[355960591,1741734698705,-1568.17,0.00023013,2]
[355960592,1741734698715,-751.65,0.00023013,2]
[355960593,1741734698724,-595.41,0.00023013,2]
[355960594,1741734698733,-1467.72,0.00023013,2]
[355960595,1741734698743,-653.8,0.00023013,2]
[355960596,1741734698754,-4529.09,0.00023013,2]
[355960597,1741734698765,-500.0,0.00023013,2]
[355960598,1741734698774,-350.00286535,0.00023013,2]
[355960599,1741734698785,-1488.91,0.00023013,2]
[355960600,1741734698795,-2429.43,0.00023013,2]
[355960601,1741734698805,-621.67,0.00023013,2]
[355960602,1741734698815,-920.31,0.00023013,2]
[355960603,1741734698905,-957.86,0.00023013,2]
[355960604,1741734698915,-1110.2,0.00023013,2]
[355960605,1741734698924,-544.11,0.00023013,2]
[355960606,1741734698934,-952.07,0.00023013,2]
[355960607,1741734698944,-576.21,0.00023013,2]
[355960608,1741734698954,-738.24,0.00023013,2]
[355960609,1741734698964,-9999.0,0.00023013,2]
[355960610,1741734698973,-853.84,0.00023013,2]
[355960611,1741734698982,-544.34,0.00023013,2]
[355960612,1741734698992,-500.0,0.00023013,2]
[355960613,1741734699002,-677.1,0.00023013,2]
[355960614,1741734699011,-4842.64,0.00023013,2]
[355960615,1741734699021,-500.0,0.00023013,2]
[355960616,1741734699030,-500.0,0.00023013,2]
[355960617,1741734699039,-518.91,0.00023013,2]
[355960618,1741734699049,-4054.19,0.00023013,2]
[355960619,1741734699058,-866.55,0.00023013,2]
[355960620,1741734699068,-3046.16,0.00023013,2]
[355960621,1741734699078,-150.0,0.00023014,2]
[355960622,1741734699087,-1142.28,0.00023124,2]
[355960623,1741734699096,-3772.17,0.00023124,2]
[355960624,1741734699106,-163381.79,0.00023124,2]
[355960625,1741734699116,-2671.58,0.00023124,2]
[355960626,1741734699125,-863.38,0.00023124,2]
[355960627,1741734699135,-5706.05,0.00023124,2]
[355960628,1741734699144,-664.48,0.00023124,2]
[355960629,1741734699154,-513.37487745,0.00023124,2]
[355960630,1741734699163,-3577.81,0.00023124,2]
[355960631,1741734699173,-909.63,0.00023127,2]
[355960632,1741734699182,-500.0,0.00023127,2]
[355960633,1741734699192,-1219.12,0.00023127,2]
[355960634,1741734699201,-500.0,0.00023127,2]
[355960635,1741734699211,-735.93,0.00023127,2]
[355960636,1741734699219,-613.95,0.00023127,2]
[355960637,1741734699229,-500.0,0.00023127,2]
[355960638,1741734699238,-500.0,0.00023127,2]
[355960639,1741734699247,-617.74,0.00023127,2]
[355960640,1741734699256,-500.0,0.00023127,2]
[355960641,1741734699266,-1157.79,0.00023127,2]
[355960642,1741734699276,-610.48,0.00023127,2]
[355960643,1741734699286,-547.18,0.00023127,2]
[355960644,1741734699296,-500.0,0.00023127,2]
[355960645,1741734699306,-1437.26,0.00023127,2]
[355960646,1741734699315,-500.0,0.00023127,2]
[355960647,1741734699325,-559.53,0.00023127,2]
[355960648,1741734699335,-1184.99,0.00023127,2]
[355960649,1741734699345,-541.3,0.00023127,2]
[355960650,1741734699354,-500.0,0.00023127,2]
[355960651,1741734699363,-500.0,0.00023127,2]
[355960652,1741734699372,-500.0,0.00023127,2]
[355960653,1741734699383,-500.0,0.00023127,2]
[355960654,1741734699392,-1059.92,0.00023127,2]
[355960655,1741734699402,-677.01,0.00023127,2]
[355960656,1741734699411,-1053.17,0.00023127,2]
[355960657,1741734699420,-1149.09,0.00023127,2]
[355960658,1741734699430,-2390.45,0.00023127,2]
[355960659,1741734699439,-673.04,0.00023127,2]
[355960660,1741734699448,-500.0,0.00023127,2]
[355960661,1741734699457,-500.0,0.00023127,2]
[355960662,1741734699467,-1109.37,0.00023127,2]
[355960663,1741734699475,-1057.29,0.00023127,2]
[355960664,1741734699484,-725.09,0.00023127,2]
[355960665,1741734699493,-853.84,0.00023127,2]
[355960666,1741734699503,-536.23,0.00023127,2]
[355960667,1741734699513,-500.0,0.00023127,2]
[355960668,1741734699523,-740.86,0.00023127,2]
[355960669,1741734699532,-500.0,0.00023127,2]
[355960670,1741734699542,-500.0,0.0002313,2]
[355960671,1741734699551,-527.54,0.0002313,2]
[355960672,1741734699560,-500.0,0.0002313,2]
[355960673,1741734699570,-504.98,0.0002313,2]
[355960674,1741734699579,-622.0,0.0002313,2]
[355960675,1741734699589,-500.0,0.0002313,2]
[355960676,1741734699598,-554.08,0.0002313,2]
[355960677,1741734699607,-2973.52,0.0002313,2]
[355960678,1741734699616,-601.0,0.0002313,2]
[355960679,1741734699626,-230.27486956,0.0002313,2]
[355960680,1741734699635,-691.82,0.0002313,2]
[355960681,1741734699644,-500.0,0.0002313,2]
[355960682,1741734699653,-500.0,0.0002313,2]
[355960683,1741734699663,-500.0,0.0002313,2]
[355960684,1741734699672,-602.44,0.0002313,2]
[355960685,1741734699682,-500.0,0.0002313,2]
[355960686,1741734699691,-820.67,0.0002313,2]
[355960687,1741734699700,-793.66,0.0002313,2]
[355960688,1741734699710,-590.49,0.0002313,2]
[355960689,1741734699719,-500.0,0.0002313,2]
[355960690,1741734699731,-500.0,0.0002313,2]
[355960691,1741734699740,-535.91,0.0002313,2]
[355960692,1741734699751,-654.51,0.0002313,2]
[355960693,1741734699765,-864.43,0.0002313,2]
[355960694,1741734699774,-1196.8,0.0002313,2]
[355960695,1741734699787,-920.25,0.0002313,2]
[355960696,1741734699796,-1396.49,0.0002313,2]
[355960697,1741734699805,-548.11,0.0002313,2]
[355960698,1741734699815,-647.17,0.0002313,5]
[355960699,1741734699825,-500.0,0.0002313,2]
[355960700,1741734699835,-500.0,0.0002313,2]
[355960701,1741734699845,-485.13431426,0.0002313,2]
[355960702,1741734699855,-500.0,0.0002313,2]
[355960703,1741734699864,-627.98,0.0002313,2]
[355960704,1741734699874,-500.0,0.00023133,2]
[355960705,1741734699883,-500.0,0.00023133,2]
[355960706,1741734699892,-500.0,0.00023133,2]
[355960707,1741734699901,-728.06,0.00023133,2]
[355960708,1741734699911,-958.86,0.00023133,2]
[355960709,1741734699920,-1101.24,0.00023133,2]
[355960710,1741734699929,-987.72,0.00023133,2]
[355960711,1741734699939,-500.0,0.00023135,2]
[355960712,1741734699948,-1782.88,0.00023135,2]
[355960713,1741734699957,-559.98,0.00023135,2]
[355960714,1741734699966,-640.92,0.00023135,2]
[355960715,1741734699975,-578.46,0.00023135,2]
[355960716,1741734699985,-1913.04,0.00023135,2]
[355960717,1741734700006,-500.0,0.00023135,2]
[355960718,1741734700026,-888.29,0.00023135,2]
[355960719,1741734700047,-748.42,0.00023135,2]
[355960720,1741734700057,-500.0,0.00023223,2]
[355960721,1741734700067,-158.770233,0.00023232,2]
[355960722,1741734700076,-15572.92107546,0.00023256,2]
[355960723,1741734700086,-160.0,0.00023256,2]
[355960724,1741734700095,-160.0,0.00023256,2]
[355960725,1741734700106,-416.66666667,0.00023256,2]
[355960726,1741734700115,-23179.53,0.00023287,2]
[355960727,1741734700124,-542.81,0.00023287,2]
[355960728,1741734700134,-500.0,0.00023287,2]
[355960729,1741734700143,-2091.01,0.00023287,2]
[355960730,1741734700152,-13103.95,0.00023287,2]
[355960731,1741734700161,-9736.43,0.00023287,2]
[355960732,1741734700170,-794.64,0.00023287,2]
[355960733,1741734700180,-705.67,0.00023287,2]
[355960734,1741734700190,-536.16,0.00023287,2]
[355960735,1741734700199,-500.0,0.00023287,2]
[355960736,1741734700208,-500.0,0.00023287,2]
[355960737,1741734700217,-500.0,0.00023287,2]
[355960738,1741734700226,-576.66,0.00023287,2]
[355960739,1741734700235,-500.0,0.00023287,2]
[355960740,1741734700244,-1473.83,0.00023287,2]
[355960741,1741734700253,-570.33,0.00023287,2]
[355960742,1741734700262,-500.0,0.00023287,2]
[355960743,1741734700271,-500.0,0.00023287,2]
[355960744,1741734700280,-505.73,0.00023287,2]
[355960745,1741734700289,-5474.57,0.00023287,2]
[355960746,1741734700298,-3769.43,0.00023287,2]
[355960747,1741734700308,-1250.48,0.00023287,2]
[355960748,1741734700317,-2486.99,0.00023287,2]
[355960749,1741734700326,-525.77,0.00023287,2]
[355960750,1741734700335,-500.0,0.00023287,2]
[355960751,1741734700345,-513.82,0.00023287,2]
[355960752,1741734700355,-601.79,0.00023287,2]
[355960753,1741734700364,-723.39,0.00023287,2]
[355960754,1741734700373,-500.0,0.00023287,2]
[355960755,1741734700382,-500.0,0.00023287,2]
[355960756,1741734700391,-500.0,0.00023287,2]
[355960757,1741734700400,-659.44,0.00023287,2]
[355960758,1741734700409,-500.0,0.00023287,2]
[355960759,1741734700418,-438.45359394,0.00023287,2]
[355960760,1741734700427,-500.0,0.00023287,2]
[355960761,1741734700436,-1136.06,0.00023287,2]
[355960762,1741734700445,-711.23,0.00023287,2]
[355960763,1741734700454,-710.79,0.00023287,2]
[355960764,1741734700464,-641.4629813,0.00023287,2]
[355960765,1741734700473,-500.0,0.00023287,2]
[355960766,1741734700482,-1151.95,0.00023287,2]
[355960767,1741734700491,-513.3,0.00023287,2]
[355960768,1741734700500,-714.14,0.00023287,2]
[355960769,1741734700509,-500.0,0.00023287,2]
[355960770,1741734700519,-1290.07,0.00023287,2]
[355960771,1741734700528,-500.0,0.00023287,2]
[355960772,1741734700537,-4997.1,0.00023287,2]
[355960773,1741734700546,-500.0,0.00023287,2]
[355960774,1741734700555,-1292.35,0.00023287,2]
[355960775,1741734700564,-1188.37,0.00023287,2]
[355960776,1741734700572,-604.97,0.00023287,2]
[355960777,1741734700582,-1994.33,0.00023287,2]
[355960778,1741734700590,-892.18,0.00023287,2]
[355960779,1741734700599,-755.13,0.00023287,2]
[355960780,1741734700609,-545.99,0.00023287,2]
[355960781,1741734700618,-1156.57,0.00023287,2]
[355960782,1741734700627,-520.62,0.00023287,2]
[355960783,1741734700636,-1451.2,0.00023287,2]
[355960784,1741734700646,-500.0,0.00023287,2]
[355960785,1741734700655,-621.0,0.00023287,2]
[355960786,1741734700664,-1784.22,0.00023287,2]
[355960787,1741734700674,-500.0,0.00023287,2]
[355960788,1741734700683,-291.01999362,0.00023287,2]
[355960789,1741734700692,-1214.06,0.00023287,2]
[355960790,1741734700701,-868.24,0.00023287,2]
[355960791,1741734700711,-500.0,0.00023287,2]
[355960792,1741734700720,-1227.37,0.00023287,2]
[355960793,1741734700730,-728.17,0.00023287,2]
[355960794,1741734700740,-1170.42,0.00023287,2]
[355960795,1741734700749,-5008.44,0.00023287,2]
[355960796,1741734700761,-500.0,0.00023287,2]
[355960797,1741734700770,-1568.17,0.00023287,2]
[355960798,1741734700780,-751.65,0.00023287,2]
[355960799,1741734700789,-595.41,0.00023287,2]
[355960800,1741734700798,-1467.72,0.00023287,2]
[355960801,1741734700807,-653.8,0.00023287,2]
[355960802,1741734700816,-4529.09,0.00023287,2]
[355960803,1741734700825,-386.50217205,0.00023287,2]
[355960804,1741734700835,-1488.91,0.00023287,2]
[355960805,1741734700844,-2429.43,0.00023287,2]
[355960806,1741734700854,-621.67,0.00023287,2]
[355960807,1741734700863,-920.31,0.00023287,2]
[355960808,1741734700872,-957.86,0.00023287,2]
[355960809,1741734700881,-1110.2,0.00023287,2]
[355960810,1741734700890,-544.11,0.00023287,2]
[355960811,1741734700900,-952.07,0.00023287,2]
[355960812,1741734700910,-576.21,0.00023287,2]
[355960813,1741734700919,-738.24,0.00023287,2]
[355960814,1741734700928,-9999.0,0.00023287,2]
[355960815,1741734700938,-853.84,0.00023287,2]
[355960816,1741734700947,-544.34,0.00023287,2]
[355960817,1741734700957,-500.0,0.00023287,2]
[355960818,1741734700967,-677.1,0.00023287,2]
[355960819,1741734700976,-4842.64,0.00023287,2]
[355960820,1741734700986,-500.0,0.00023287,2]
[355960821,1741734700995,-500.0,0.00023287,2]
[355960822,1741734701005,-518.91,0.00023287,2]
[355960823,1741734701015,-4054.19,0.00023287,2]
[355960824,1741734701025,-866.55,0.00023287,2]
[355960825,1741734701034,-3046.16,0.00023287,2]
[355960826,1741734701043,-1142.28,0.00023398,2]
[355960827,1741734701053,-3772.17,0.00023398,2]
[355960828,1741734701062,-163381.79,0.00023398,2]
[355960829,1741734701072,-2671.58,0.00023398,2]
[355960830,1741734701082,-863.38,0.00023398,2]
[355960831,1741734701092,-5706.05,0.00023398,2]
[355960832,1741734701101,-664.48,0.00023398,2]
[355960833,1741734701111,-3577.81,0.00023398,2]
[355960834,1741734701120,-909.63,0.00023401,2]
[355960835,1741734701130,-500.0,0.00023401,2]
[355960836,1741734701140,-1219.12,0.00023401,2]
[355960837,1741734701149,-585.1205019,0.00023401,2]
[355960838,1741734701159,-735.93,0.00023401,2]
[355960839,1741734701169,-613.95,0.00023401,2]
[355960840,1741734701179,-500.0,0.00023401,2]
[355960841,1741734701188,-500.0,0.00023401,2]
[355960842,1741734701198,-617.74,0.00023401,2]
[355960843,1741734701208,-499.83705801,0.00023401,2]
[355960844,1741734701218,-1157.79,0.00023401,2]
[355960845,1741734701228,-610.48,0.00023401,2]
[355960846,1741734701237,-547.18,0.00023401,2]
[355960847,1741734701247,-500.0,0.00023401,2]
[355960848,1741734701257,-1437.26,0.00023401,2]
[355960849,1741734701267,-500.0,0.00023401,2]
[355960850,1741734701276,-559.53,0.00023401,2]
[355960851,1741734701285,-1184.99,0.00023401,2]
[355960852,1741734701295,-541.3,0.00023401,2]
[355960853,1741734701304,-500.0,0.00023401,2]
[355960854,1741734701314,-500.0,0.00023401,2]
[355960855,1741734701323,-500.0,0.00023401,2]
[355960856,1741734701333,-330.03997617,0.00023401,2]
[355960857,1741734701342,-1059.92,0.00023401,2]
[355960858,1741734701352,-677.01,0.00023401,2]
[355960859,1741734701362,-1053.17,0.00023401,2]
[355960860,1741734701372,-1149.09,0.00023401,2]
[355960861,1741734701381,-2390.45,0.00023401,2]
[355960862,1741734701391,-673.04,0.00023401,2]
[355960863,1741734701401,-500.0,0.00023401,2]
[355960864,1741734701411,-500.0,0.00023401,2]
[355960865,1741734701420,-1109.37,0.00023401,2]
[355960866,1741734701430,-1057.29,0.00023401,2]
[355960867,1741734701440,-725.09,0.00023401,2]
[355960868,1741734701449,-853.84,0.00023401,2]
[355960869,1741734701460,-536.23,0.00023401,2]
[355960870,1741734701470,-500.0,0.00023401,2]
[355960871,1741734701479,-740.86,0.00023401,2]
[355960872,1741734701489,-500.0,0.00023401,2]
[355960873,1741734701499,-500.0,0.00023404,2]
[355960874,1741734701508,-527.54,0.00023404,2]
[355960875,1741734701519,-500.0,0.00023404,2]
[355960876,1741734701529,-504.98,0.00023404,2]
[355960877,1741734701539,-622.0,0.00023404,2]
[355960878,1741734701548,-500.0,0.00023404,2]
[355960879,1741734701558,-554.08,0.00023404,2]
[355960880,1741734701568,-2973.52,0.00023404,2]
[355960881,1741734701577,-601.0,0.00023404,2]
[355960882,1741734701587,-691.82,0.00023404,2]
[355960883,1741734701597,-460.52705068,0.00023404,2]
[355960884,1741734701607,-352.24035054,0.00023404,2]
[355960885,1741734701616,-500.0,0.00023404,2]
[355960886,1741734701626,-602.44,0.00023404,2]
[355960887,1741734701636,-500.0,0.00023404,2]
[355960888,1741734701645,-820.67,0.00023404,2]
[355960889,1741734701655,-793.66,0.00023404,2]
[355960890,1741734701665,-590.49,0.00023404,2]
[355960891,1741734701674,-500.0,0.00023404,2]
[355960892,1741734701684,-500.0,0.00023404,2]
[355960893,1741734701694,-535.91,0.00023404,2]
[355960894,1741734701704,-654.51,0.00023404,2]
[355960895,1741734701714,-864.43,0.00023404,2]
[355960896,1741734701724,-1196.8,0.00023404,2]
[355960897,1741734701734,-920.25,0.00023404,2]
[355960898,1741734701744,-1396.49,0.00023404,2]
[355960899,1741734701756,-548.11,0.00023404,2]
[355960900,1741734701769,-647.17,0.00023404,5]
[355960901,1741734701780,-260.69135769,0.00023404,2]
[355960902,1741734701790,-500.0,0.00023404,2]
[355960903,1741734701800,-500.0,0.00023404,2]
[355960904,1741734701810,-627.98,0.00023404,2]
[355960905,1741734701821,-500.0,0.00023407,2]
[355960906,1741734701831,-500.0,0.00023407,2]
[355960907,1741734701843,-500.0,0.00023407,2]
[355960908,1741734701853,-728.06,0.00023407,2]
[355960909,1741734701863,-958.86,0.00023407,2]
[355960910,1741734701873,-1101.24,0.00023407,2]
[355960911,1741734701884,-987.72,0.00023407,2]
[355960912,1741734701894,-500.0,0.00023409,2]
[355960913,1741734701904,-1782.88,0.00023409,2]
[355960914,1741734701914,-559.98,0.00023409,2]
[355960915,1741734701924,-640.92,0.00023409,2]
[355960916,1741734701935,-578.46,0.00023409,2]
[355960917,1741734701946,-1913.04,0.00023409,2]
[355960918,1741734701956,-500.0,0.00023409,2]
[355960919,1741734701966,-888.29,0.00023409,2]
[355960920,1741734701976,-748.42,0.00023409,2]
[355960921,1741734701986,-500.0,0.00023497,2]
[355960922,1741734701996,-23179.53,0.00023561,2]
[355960923,1741734702005,-542.81,0.00023561,2]
[355960924,1741734702015,-500.0,0.00023561,2]
[355960925,1741734702026,-2091.01,0.00023561,2]
[355960926,1741734702036,-13103.95,0.00023561,2]
[355960927,1741734702045,-9736.43,0.00023561,2]
[355960928,1741734702056,-794.64,0.00023561,2]
[355960929,1741734702066,-705.67,0.00023561,2]
[355960930,1741734702076,-536.16,0.00023561,2]
[355960931,1741734702085,-532.784822,0.00023561,2]
[355960932,1741734702095,-500.0,0.00023561,2]
[355960933,1741734702105,-500.0,0.00023561,2]
[355960934,1741734702115,-576.66,0.00023561,2]
[355960935,1741734702125,-500.0,0.00023561,2]
[355960936,1741734702135,-1473.83,0.00023561,2]
[355960937,1741734702145,-570.33,0.00023561,2]
[355960938,1741734702159,-500.0,0.00023561,2]
[355960939,1741734702169,-500.0,0.00023561,2]
[355960940,1741734702180,-505.73,0.00023561,2]
[355960941,1741734702191,-5474.57,0.00023561,2]
[355960942,1741734702201,-3769.43,0.00023561,2]
[355960943,1741734702211,-1250.48,0.00023561,2]
[355960944,1741734702221,-2486.99,0.00023561,2]
[355960945,1741734702231,-525.77,0.00023561,2]
[355960946,1741734702240,-500.0,0.00023561,2]
[355960947,1741734702251,-601.79,0.00023561,2]
[355960948,1741734702261,-723.39,0.00023561,2]
[355960949,1741734702270,-500.0,0.00023561,2]
[355960950,1741734702280,-500.0,0.00023561,2]
[355960951,1741734702290,-500.0,0.00023561,2]
[355960952,1741734702300,-659.44,0.00023561,2]
[355960953,1741734702309,-500.0,0.00023561,2]
[355960955,1741734702319,-500.0,0.00023561,2]
[355960956,1741734702329,-1136.06,0.00023561,2]
[355960957,1741734702339,-711.23,0.00023561,2]
[355960958,1741734702348,-710.79,0.00023561,2]
[355960959,1741734702358,-500.0,0.00023561,2]
[355960960,1741734702368,-1151.95,0.00023561,2]
[355960961,1741734702377,-513.3,0.00023561,2]
[355960962,1741734702387,-714.14,0.00023561,2]
[355960963,1741734702397,-500.0,0.00023561,2]
[355960964,1741734702407,-1290.07,0.00023561,2]
[355960965,1741734702417,-464.91862173,0.00023561,2]
[355960966,1741734702428,-4997.1,0.00023561,2]
[355960967,1741734702438,-641.96491072,0.00023561,2]
[355960968,1741734702448,-1292.35,0.00023561,2]
[355960969,1741734702458,-1188.37,0.00023561,2]
[355960970,1741734702468,-604.97,0.00023561,2]
[355960971,1741734702478,-1994.33,0.00023561,2]
[355960972,1741734702488,-892.18,0.00023561,2]
[355960973,1741734702498,-755.13,0.00023561,2]
[355960974,1741734702508,-545.99,0.00023561,2]
[355960975,1741734702519,-1156.57,0.00023561,2]
[355960976,1741734702529,-520.62,0.00023561,2]
[355960977,1741734702539,-1451.2,0.00023561,2]
[355960978,1741734702550,-500.0,0.00023561,2]
[355960979,1741734702560,-621.0,0.00023561,2]
[355960980,1741734702570,-1784.22,0.00023561,2]
[355960981,1741734702579,-500.0,0.00023561,2]
[355960982,1741734702589,-1214.06,0.00023561,2]
[355960984,1741734702599,-868.24,0.00023561,2]
[355960985,1741734702608,-548.71073362,0.00023561,2]
[355960986,1741734702618,-1227.37,0.00023561,2]
[355960987,1741734702628,-728.17,0.00023561,2]
[355960988,1741734702638,-1170.42,0.00023561,2]
[355960989,1741734702648,-5008.44,0.00023561,2]
[355960990,1741734702658,-1568.17,0.00023561,2]
[355960991,1741734702668,-751.65,0.00023561,2]